Cogmind - Beta 14 *** ADVENTURER MODE // 2025.03.18 @ 15:59:51 Player: Sterling Result: Destroyed self with Guided Missile Launcher Performance ------------- Evolutions (1) 500 Regions Visited (3) 600 Robots Destroyed (57) 285 Value Destroyed (1613) 1613 Prototype IDs (5) 100 Alien Tech Used (0) 0 Bonus (-239) -239 TOTAL SCORE: 2859 Bonus ------- High Alert Combat Kills 40 Friendly Fire -279 Cogmind --------- Core Integrity 0/400 Matter 234/300 Energy 160/160 System Corruption 0% Temperature Cool (0) Movement Hovering (160) Ox2 Location -9/Storage Parts ------- > --- POWER (1) -------- Light Nuclear Core > --- PROPULSION (3) --- Hover Unit Hover Unit Cooled Gravmag System > --- UTILITY (3) ------ High-capacity Storage Unit Visual Processing Unit Target Analyzer > --- WEAPON (2) ------- Guided Missile Launcher > --- INVENTORY (20) --- Improved Heat Sink Drone Bay (2/2) High-powered Shotgun Grenade Launcher Improved Grenade Launcher Peak State ------------ > --- POWER ------------ Light Nuclear Core > --- PROPULSION ------- Hover Unit Hover Unit Cooled Gravmag System > --- UTILITY ---------- High-capacity Storage Unit Visual Processing Unit Target Analyzer > --- WEAPON ----------- Guided Missile Launcher > --- INVENTORY -------- Improved Heat Sink Drone Bay High-powered Shotgun Grenade Launcher Improved Grenade Launcher [Rating: 29] Favorites ----------- Power Light Nuclear Core Engine Light Ion Engine Power Core Light Nuclear Core Propulsion Cesium-ion Thruster Treads Light Treads Leg Aluminum Leg Wheel Wheel Hover Unit Hover Unit Flight Unit Cesium-ion Thruster Utility Visual Processing Unit Storage Small Storage Unit Processor Visual Processing Unit Protection Core Shielding Weapon Advanced Beam Cannon Energy Gun Medium Laser Energy Cannon Advanced Beam Cannon Ballistic Gun High-powered Shotgun Launcher Guided Missile Launcher Build | -11 -10 -9 -9 ------- Run | Yrd Mat Mat Sto Slots Evolved 2 | . . 2 . Power . | . . . . Propulsion 1 | . . 1 . Utility 1 | . . 1 . Weapon . | . . . . Parts Attached 47 | 7 3 23 14 Power 5 | 1 . 3 1 Engine 3 | 1 . 2 . Core 2 | . . 1 1 Reactor . | . . . . Propulsion 26 | 4 . 15 7 Treads 3 | 2 . 1 . Leg 1 | 1 . . . Wheel 1 | 1 . . . Hover 8 | . . 5 3 Flight 13 | . . 9 4 Utility 6 | 1 1 2 2 Device . | . . . . Storage 2 | 1 . . 1 Processor 2 | . . 2 . Hackware . | . . . . Protection 2 | . 1 . 1 Artifact . | . . . . Weapon 10 | 1 2 3 4 Energy Gun 1 | 1 . . . Energy Cannon 2 | . . 1 1 Ballistic Gun 5 | . 2 2 1 Ballistic Cannon . | . . . . Launcher 2 | . . . 2 Special Weapon . | . . . . Impact Weapon . | . . . . Slashing Weapon . | . . . . Piercing Weapon . | . . . . Special Melee Weapon . | . . . . Unidentified Prototypes 5 | . . 2 3 Parts Lost 10 | . . 9 1 Power 2 | . . 2 . Propulsion 4 | . . 4 . Utility 2 | . . 1 1 Weapon 2 | . . 2 . Highest Loss Streak 3 | . . 3 1 To Critical Strikes . | . . . . Average Slot Usage (%) 89 | . 91 92 84 Engine 6 | . 14 10 . Core 4 | . . . 9 Treads 7 | . 28 4 . Hover 3 | . . 4 4 Flight 15 | . . 18 19 Storage 8 | . 14 10 4 Processor 13 | . . 11 22 Protection 8 | . 10 11 6 Energy Gun 3 | . 14 1 . Energy Cannon 4 | . . 5 6 Ballistic Gun 11 | . 9 14 9 Peak Build Rating 29 | 5 9 22 29 Average Rating 17 | 3 7 16 24 On Entrance 9 | . 5 9 22 Naked Turns . | . . . . Heaviest Build 55 | 10 14 20 55 Greatest Support 40 | 40 40 40 23 Greatest Overweight (x) 7 | . . 3 7 Average Overweight (x) . | . . . 1 Largest Inventory Capacity 20 | 8 8 8 20 Average Capacity 9 | 7 8 7 11 Most Carried 8 | 7 8 8 7 Average Carried 6 | 3 7 6 4 Final Capacity 20 | 8 8 5 20 Final Carried 8 | 7 8 4 5 Class Distribution -------------------- 100% | Mutant Dominant Class ---------------- Mutant | -10/Materials Mutant | -9/Materials Mutant | -9/Storage Resources | -11 -10 -9 -9 ----------- Run | Yrd Mat Mat Sto Matter Collected 1003 | 167 53 510 273 Remotely . | . . . . Salvage Created 1877 | . 80 1075 722 Parts 135 | . 8 70 57 Haulers Intercepted . | . . . . Recyclers Shooed 3 | . . 2 1 Parts Field Recycled . | . . . . Retrieved Matter . | . . . . Parts Self-Destructed . | . . . . Prevented . | . . . . Kills | -11 -10 -9 -9 ------- Run | Yrd Mat Mat Sto Combat Hostiles Destroyed 53 | . 6 25 22 Guns 32 | . 6 15 11 Cannons 14 | . . 8 6 AOE 5 | . . . 5 Classes Destroyed 7 | . 1 5 1 Builder 1 | . . . 1 Recycler 1 | . . 1 . Watcher 2 | . . 1 1 Swarmer 19 | . 6 6 7 Grunt 21 | . . 10 11 Duelist 1 | . . 1 . Sentry 12 | . . 8 4 Best Kill Streak 4 | . 3 4 4 Combat Bots Only 4 | . 3 4 4 Max Kills in Single Turn 2 | . 1 2 2 Gunslinging 1 | . . 1 . Exploded 2 | . . . 2 Melee . | . . . . Uniques/NPCs Destroyed . | . . . . Combat | -11 -10 -9 -9 -------- Run | Yrd Mat Mat Sto Hostile Shots Fired 264 | . 51 147 66 Missed 51 | . 10 31 10 Damage Taken 2037 | . 270 1176 591 Core 468 | . 55 222 191 Absorbed by Shields . | . . . . Redirected to Shielding 41 | . 3 38 . Ignored by Resistances 640 | . 89 342 209 Core Remaining (%) 89 | 100 78 . . Volleys Fired 137 | . 24 72 41 Largest 2 | . 2 2 2 Hottest 93 | . 73 93 93 Shots Fired 230 | . 27 133 70 Gun 168 | . 27 101 40 Cannon 58 | . . 32 26 Launcher 4 | . . . 4 Special . | . . . . Kinetic 135 | . 3 92 40 Thermal 91 | . 24 41 26 Explosive 4 | . . . 4 Electromagnetic . | . . . . Robot Hit Streak 31 | . 6 31 20 Robot Miss Streak 5 | . 3 3 5 Penetration Max . | . . . . Secondary Targets 2 | . . 2 . Max Gunslinging Chain 1 | . . 1 . Shots Hit Robots 176 | . 19 108 49 Core Hits 76 | . 6 37 33 Critical Kills 3 | . . 2 1 Critical Parts Destroyed 4 | . . 2 2 Critical Strikes 10 | . 2 5 3 Burn 2 | . 2 . . Meltdown 2 | . . 2 . Destroy 6 | . . 3 3 Melee Attacks . | . . . . Impact . | . . . . Slashing . | . . . . Piercing . | . . . . Sneak Attacks . | . . . . Combat Hostiles . | . . . . Follow-up Attacks . | . . . . Damage Inflicted 3691 | 2 259 1864 1566 Guns 2046 | . 259 1216 571 Cannons 1005 | . . 574 431 Explosions 516 | . . . 516 Melee . | . . . . Ramming 124 | 2 . 74 48 Kinetic 1722 | . 34 1117 571 Thermal 1329 | . 225 673 431 Explosive 516 | . . . 516 Electromagnetic . | . . . . Impact . | . . . . Slashing . | . . . . Piercing . | . . . . Highest Corruption 1 | . 1 . . Average Corruption 1 | . 1 . . Corruption Purged . | . . . . Corruption Blocked . | . . . . Overload Shots . | . . . . Overflow Damage 20 | . . . 20 Projectiles 1 | . . . 1 Explosions 19 | . . . 19 Melee . | . . . . Knockbacks 1 | . . . 1 Impact 1 | . . . 1 Kinetic . | . . . . Secondary . | . . . . Self-Inflicted Damage 153 | . . 33 120 Shots 3 | . . . 3 Rammed 21 | 1 . 11 9 Targets Rammed 22 | 1 . 12 9 Kicked . | . . . . Crushed 1 | . . 1 . Highest Temperature 301 | . 60 301 240 Average Temperature 75 | . 22 83 85 Received Heat Transfer 816 | . 60 492 264 Effects 4 | . . 4 . Energy Bleed 1 | . . 1 . Interference 3 | . . 3 . Siege Activations . | . . . . Robots Corrupted . | . . . . Combat Hostiles . | . . . . Parts Fried . | . . . . Impact Corruptions . | . . . . Robots Melted 2 | . . 2 . Combat Hostiles 2 | . . 2 . Parts Melted 7 | . 3 4 . Heat Transferred 2923 | . 814 1332 777 Parts Sabotaged . | . . . . Parts Stolen . | . . . . Parts Stripped . | . . . . Power Chain Reactions . | . . . . Alert | -11 -10 -9 -9 ------- Run | Yrd Mat Mat Sto Peak Influence 461 | . 195 294 461 Initial 61 | . . 12 61 Average 169 | . 119 118 271 Maximum Alert Level 2 | . . 1 2 Low Security (%) 67 | 100 100 84 27 Level 1 26 | . . 15 55 Level 2 6 | . . . 17 Level 3 . | . . . . Level 4 . | . . . . Level 5 . | . . . . High Security . | . . . . Max Security . | . . . . Squads Dispatched 7 | . 2 1 4 Investigation 4 | . 2 1 1 Extermination . | . . . . Reinforcement 3 | . . . 3 Assault . | . . . . Garrison . | . . . . Intercept . | . . . . Searches Triggered . | . . . . Construction Impeded . | . . . . Haulers Reinforced . | . . . . Active Scanning Responses . | . . . . Cargo Convoy Interrupts . | . . . . Stealth | -11 -10 -9 -9 --------- Run | Yrd Mat Mat Sto Distress Signals 5 | . 1 2 2 Communications Jammed . | . . . . Distress Signals . | . . . . Times Spotted 85 | . 15 37 33 Peak Tracking Total 5 | . 5 4 5 Tactical Retreats 7 | . 2 1 4 Traps | -11 -10 -9 -9 ------- Run | Yrd Mat Mat Sto Traps Triggered 3 | . . 1 2 Indirectly . | . . . . Trap Hack Attempts . | . . . . Triggered . | . . . . Disarmed . | . . . . Reprogrammed 6 | . 6 . . Reused 1 | . 1 . . Traps Extracted . | . . . . Installed . | . . . . Triggered 1 | . 1 . . Machines | -11 -10 -9 -9 ---------- Run | Yrd Mat Mat Sto Machines Disabled 4 | . . 1 3 Max in Single Turn 1 | . . 1 1 Machines Repaired . | . . . . Machines Dismantled . | . . . . Machines Sabotaged . | . . . . Overloaded Fab Kills . | . . . . Hacking | -11 -10 -9 -9 --------- Run | Yrd Mat Mat Sto Machines Accessed 11 | . 3 3 5 Terminals 11 | . 3 3 5 Fabricators . | . . . . Repair Stations . | . . . . Recycling Units . | . . . . Scanalyzers . | . . . . Garrison Access . | . . . . Total Hacks 31 | . 10 13 8 Successful 19 | . 8 8 3 Failed 11 | . 2 4 5 Catastrophic 2 | . . . 2 Database Lockouts 1 | . . 1 . Manual . | . . . . Terminals 31 | . 10 13 8 Fabricators . | . . . . Repair Stations . | . . . . Recycling Units . | . . . . Scanalyzers . | . . . . Garrison Access . | . . . . Terminal Hacks 19 | . 8 8 3 Record 7 | . 2 5 . Open Door 2 | . . . 2 Emergency Access Points 1 | . 1 . . Alert Level 2 | . 1 . 1 Unreport Threat 2 | . . 2 . Locate Traps 1 | . 1 . . Reprogram Traps 1 | . 1 . . Maintenance Status 1 | . . 1 . Zone Layout 2 | . 2 . . Fabricator Hacks . | . . . . Repair Station Hacks . | . . . . Recycling Unit Hacks . | . . . . Scanalyzer . | . . . . Garrison Access Hacks . | . . . . Unauthorized Hacks . | . . . . Terminals . | . . . . Fabricators . | . . . . Repair Stations . | . . . . Recycling Units . | . . . . Scanalyzers . | . . . . Garrison Access . | . . . . Data Cores Recovered . | . . . . Used . | . . . . Hacking Detections 8 | . 2 3 3 Full Trace Events 3 | . 2 . 1 Feedback Events 1 | . 1 . . Corruption 1 | . 1 . . Feedback Blocked . | . . . . Robot Schematics Acquired . | . . . . Robots Built . | . . . . Authchips . | . . . . Time . | . . . . Total Robot Build Rating . | . . . . Part Schematics Acquired . | . . . . Parts Built . | . . . . Authchips . | . . . . Time . | . . . . Total Part Build Rating . | . . . . Parts Repaired . | . . . . Time . | . . . . Parts Recycled . | . . . . Recycled Matter . | . . . . Retrieved Matter . | . . . . Retrieved Components . | . . . . Parts Scanalyzed . | . . . . Part Schematics Acquired . | . . . . Parts Damaged . | . . . . Bothacking | -11 -10 -9 -9 ------------ Run | Yrd Mat Mat Sto Used RIF Installer . | . . . . Robots Hacked . | . . . . Non-combat . | . . . . Combat . | . . . . Robot Hacks Applied . | . . . . Relay Couplers Released . | . . . . Fabnet Peak Effective % . | . . . . Robots Rewired . | . . . . Allies Hacked . | . . . . Hacks Repelled . | . . . . Allies | -11 -10 -9 -9 -------- Run | Yrd Mat Mat Sto Total Allies . | . . . . Largest Group . | . . . . Highest-Rated Group . | . . . . Highest-Rated Ally . | . . . . Total Orders . | . . . . Ally Attacks . | . . . . Total Damage . | . . . . Kills . | . . . . Allies Corrupted . | . . . . Allies Melted . | . . . . Intel | -11 -10 -9 -9 ------- Run | Yrd Mat Mat Sto Robot Analysis Total . | . . . . Derelict Logs Recovered . | . . . . Drone Launches . | . . . . Drone Recoveries . | . . . . Exploration | -11 -10 -9 -9 ------------- Run | Yrd Mat Mat Sto Turns Passed 2585 | 117 498 1021 949 Spaces Moved 1467 | 78 242 634 513 Core 16 | 16 . . . Treads 371 | 49 242 80 . Legs . | . . . . Wheels 13 | 13 . . . Hover 261 | . . 128 133 Flight 806 | . . 426 380 Fastest Speed 29 | 50 160 52 29 Average Speed 132 | 124 160 112 145 Slowest Speed 530 | 160 160 275 530 Overloaded Moves . | . . . . Propulsion Burnouts . | . . . . Robots Hopped . | . . . . Cave-ins Triggered . | . . . . Exploration Rate (%) 44 | 4 40 57 78 Regions Visited 3 Branch Regions 1 Pre-discovered Areas . | . . . . Known Exits Taken . | . . . . Unknown Exits Taken 3 | 1 1 1 . Scrap Searched . | . . . . Spaces Dug . | . . . . Terrain Destroyed 51 | . . . 51 Melee . | . . . . Projectile . | . . . . AOE 51 | . . . 51 Terrain Rammed . | . . . . Walls Destroyed . | . . . . Machines Disabled . | . . . . Actions | -11 -10 -9 -9 --------- Run | Yrd Mat Mat Sto Total 1886 | 99 328 809 650 Wait 123 | . 49 32 42 Move 1464 | 77 241 633 513 Hop . | . . . . Pick Up 59 | 12 7 22 18 Fast Attach . | . . . . Attach 42 | 7 3 18 14 Detach 4 | 2 . . 2 Swap 5 | . . 5 . Drop 30 | . 4 15 11 Fire 137 | . 24 72 41 Melee . | . . . . Ram 19 | . . 10 9 Kick . | . . . . Crush 3 | 1 . 2 . Escape Stasis . | . . . . Rewire . | . . . . Trap . | . . . . Miscellaneous . | . . . . Route ------- -11/Scrapyard -10/Materials (discovered 3 exits: *Mat x2 / [*Min]) -9/Materials (discovered 2 exits: [*Min] / *Sto) -9/Storage (discovered 1 exit: [*Mat]) History --------- Turn | Location | Event 24 | -11/Scrapyard | Discovered new exit (range 15) 118 | -11/Scrapyard | Entered Materials 300 | -10/Materials | Build established: Mutant 388 | -10/Materials | Discovered new exit (range 14) 390 | -10/Materials | Discovered new exit (range 13) 558 | -10/Materials | Discovered new exit (range 15) 616 | -10/Materials | Entered another Materials area 616 | -9/Materials | Evolved 2 slots: Propulsion x1, Utility x1 752 | -9/Materials | Lost 3 parts (1p1n1w) 858 | -9/Materials | Discovered new exit (range 9) 1445 | -9/Materials | Core integrity fell below 50% 1531 | -9/Materials | Central database locked down 1559 | -9/Materials | Discovered new exit (range 7) 1637 | -9/Materials | Entered Storage 2025 | -9/Storage | Discovered new exit (range 13) 2069 | -9/Storage | Met 01-MTF 2353 | -9/Storage | Found Prototype Launcher 2432 | -9/Storage | Core integrity fell below 20% 2506 | -9/Storage | Identified Gui. Missile Launcher 2586 | -9/Storage | Destroyed self with Guided Missile Launcher Last Messages --------------- Destroyed Wheel. Destroyed Lgt. Ion Engine. S-10 Pest destroyed. The unstable cave ceiling collapses. U-05 Engineer lays Concrete. U-05 Engineer destroyed. Terminal disabled. O-16 Technician: "IFF HANDSHAKE FAILED. SECURING TERMINAL." U-05 Engineer builds a Wall. Identified Gui. Missile Launcher. ALERT: Hostiles spotted, dispatching reinforcements to Terminal S016. U-05 Engineer builds a Wall. Acquired 3 matter. U-05 Engineer builds a Wall. Slammed into U-05 Engineer. Acquired 73 matter. Acquired Hover Unit. G-34 Mercenary destroyed. Map ----- +----------------------------------------------------+ | #######+#################!###?? | | #??# #? # %/ #%=T#?? | | #??# # """ # /! #*""#?? | | #### # """ ![ # / #=###?? | | + # """ ![ # # #???? | | ####### # *[ # + #???? | | #?????# # """ #"" # #???? | | ############## """ #" # #???? | | [ #????# """ # #???? | | = #????# | #???? | | = =#?????## *### ##??? | | ] #?##### [ =! ! #??? | | ## #### #?#"""# %* # ####? | | ?# ####+###" "# ### #? | | ?# + % = #?## # """ #? | | ?#+## ]!! "" + #??##% "R #? | | ????# ] ! T" # #???## """ #? | | ????# ]! "" # #????# #? | | ????# # #????# #? | | ????######### #### #????########? | | ????????#######??# #????????????? | | ????????# / ?# #??######????? | | ????????# !?# #### ===#????? | | ????????# # ##T#== #????? | | ????????# [ # !g"p =#????? | | ????????# %+ =%% @ #????? | | ????????# = #k =" ==#????? | | ????????# # # #!!==#????? | | ????????# ?# #########????? | | ????????# ?# #????????????? | | ?#####+##+######## #????????????? | | # #????????????? | | # #????????????? | | # #????????????? | | ???#############/#####????????????? | | ??????????# % #?????????????? | | ??????????# #?????????????? | | ??????????# #?????????????? | | ??????????# #?????????????? | | ??????????# """ """ #?????????????? | | ??????????# """ """ #?????????????? | | ??????? ?# """ """ #?????????????? | | ??????? ?# #?????????????? | | ??????? ?######+####?????????????? | | ??????? ??????#%#?#########??????? | | ??????? ??????#%#?# #! !!#??????? | | ??????? ??????#%#?# " ! #??????? | | ??#+###+########%### !#??????? | | ??+ + " #??????? | | ??# ##T# !! #??????? | +----------------------------------------------------+ Best States ------------- Heat Dissipation 28 Energy Generation 14 Energy Capacity 265 Matter Stores 300 Matter Capacity 300 Sight Range 18 Terrain Scan Density 10 Armor Coverage 150 Resistance: KI 20 Resistance: TH 30 Resistance: EX 20 Resistance: EM 20 Resistance: I 20 Resistance: S 20 Resistance: P 20 Core Shielding 20 Evasion (%) 64 Target Analysis 5 Recoil Reduction 2 Offensive Hacking 10 Item Schematics ----------------- None Robot Schematics ------------------ None Fabricated ------------ Nothing Alien Tech Used ----------------- None Achievements -------------- None Challenges ------------ None Game ------ Seed RelayImpulseCompressor Manual? 0 Play Time 00:28:20 Cumulative 3.0 hours Start 2025.03.18 @ 15:31:09 End 2025.03.18 @ 15:59:51 Sessions 1 Manual Loads 0 Difficulty Adventurer Special Mode None Game No. 7 Rogue 0 Adventurer 7 Explorer 0 Win Type - Total 0 Types 0/0/0/0/0/0/0/0/0 Lore% 8 Gallery% 11 Achievement% 12 Wizard Run 0 Options --------- Layout 1 ASCII 0 Keyboard 0 Movement Numpad Keybinds 0 Fullscreen 1 Font 24/Smallcaps Map View 50x35 Zoom Use 0% Tactical HUD 0 Map Filters NONE Filters NONE Steam 1 RUN: e8d7bcab-25ed-4411-8556-e140adbb9b66